lending/lending_fUSD_20250808
["ID","MTS","AMOUNT","RATE_DAILY","PERIOD"]
[378039393,1754675438020,-400.0,0.00019211,2]
[378039394,1754675438030,-400.0,0.00019211,2]
[378039395,1754675438040,-462.3,0.00019211,2]
[378039396,1754675438050,-385.27,0.00019211,2]
[378039397,1754675438059,-400.0,0.00019211,2]
[378039398,1754675438069,-400.0,0.00019211,2]
[378039399,1754675438078,-400.0,0.00019211,2]
[378039400,1754675438088,-417.89,0.00019211,2]
[378039401,1754675438098,-400.0,0.00019211,2]
[378039402,1754675438107,-400.0,0.00019211,2]
[378039403,1754675438119,-424.19,0.00019211,2]
[378039404,1754675438130,-299.18,0.00019211,2]
[378039405,1754675438139,-400.0,0.00019211,2]
[378039406,1754675438148,-530.21,0.00019211,2]
[378039407,1754675438158,-849.68,0.00019211,2]
[378039408,1754675438168,-400.0,0.00019211,2]
[378039409,1754675438180,-400.0,0.00019211,2]
[378039410,1754675438190,-3076.59,0.00019211,2]
[378039411,1754675438199,-3518.48,0.00019211,2]
[378039412,1754675438208,-269.68830037,0.00019211,2]
[378039413,1754675438218,-208.98732088,0.00019211,2]
[378039414,1754675438227,-1191.04,0.00019211,2]
[378039415,1754675438236,-400.0,0.00019211,2]
[378039416,1754675438246,-332.64,0.00019211,2]
[378039417,1754675438255,-6030.49,0.00019211,2]
[378039418,1754675438265,-611.08,0.00019211,2]
[378039419,1754675438275,-523.85,0.00019211,2]
[378039420,1754675438284,-400.0,0.00019212,2]
[378039421,1754675438294,-999.3,0.00019212,2]
[378039422,1754675438303,-405.36,0.00019212,2]
[378039423,1754675438313,-415.74,0.00019212,2]
[378039424,1754675438323,-403.35,0.00019212,2]
[378039425,1754675438333,-400.0,0.00019212,2]
[378039426,1754675438343,-400.0,0.00019212,2]
[378039427,1754675438352,-400.0,0.00019212,2]
[378039428,1754675438362,-400.0,0.00019212,2]
[378039429,1754675438373,-377.63,0.00019212,2]
[378039430,1754675438383,-400.0,0.00019212,2]
[378039431,1754675438686,-400.0,0.00019212,2]
[378039432,1754675438702,-400.0,0.00019212,2]
[378039433,1754675438711,-400.0,0.00019212,2]
[378039434,1754675438721,-590.54,0.00019212,2]
[378039435,1754675438732,-400.0,0.00019212,2]
[378039436,1754675438741,-400.0,0.00019212,2]
[378039437,1754675438750,-400.0,0.00019212,2]
[378039438,1754675438759,-400.0,0.00019212,2]
[378039439,1754675438768,-400.0,0.00019212,2]
[378039440,1754675438778,-350.29,0.00019212,2]
[378039441,1754675438788,-400.0,0.00019212,2]
[378039442,1754675438797,-400.0,0.00019212,2]
[378039443,1754675438806,-1509.07,0.00019212,2]
[378039444,1754675438816,-400.0,0.00019212,2]
[378039445,1754675438825,-1285.4,0.00019212,2]
[378039446,1754675438835,-400.0,0.00019212,2]
[378039447,1754675438845,-189.04,0.00019212,2]
[378039448,1754675438854,-400.0,0.00019212,2]
[378039449,1754675438864,-187.78,0.00019212,2]
[378039450,1754675438873,-400.0,0.00019212,2]
[378039451,1754675438883,-2782.77,0.00019212,2]
[378039452,1754675438893,-400.0,0.00019212,2]
[378039453,1754675438903,-400.0,0.00019212,2]
[378039454,1754675438913,-709.42,0.00019212,2]
[378039455,1754675438922,-400.0,0.00019262,2]
[378039456,1754675438931,-400.0,0.00019262,2]
[378039457,1754675438941,-400.0,0.00019262,2]
[378039458,1754675438950,-531.55,0.00019262,2]
[378039459,1754675438960,-205.62,0.00019262,2]
[378039460,1754675438969,-286.49,0.00019262,2]
[378039461,1754675438979,-241.09,0.00019262,2]
[378039462,1754675438988,-271.14,0.00019262,2]
[378039463,1754675438997,-331.21,0.00019262,2]
[378039464,1754675439007,-293.0,0.00019262,2]
[378039465,1754675439016,-400.0,0.00019262,2]
[378039466,1754675439026,-400.0,0.00019262,2]
[378039467,1754675439035,-492.02,0.00019262,2]
[378039468,1754675439045,-400.0,0.00019262,2]
[378039469,1754675439054,-303.66,0.00019262,2]
[378039470,1754675439063,-452.57,0.00019262,2]
[378039471,1754675439072,-400.0,0.00019262,2]
[378039472,1754675439082,-333.91,0.00019262,2]
[378039473,1754675439091,-400.0,0.00019262,2]
[378039474,1754675439100,-400.0,0.00019262,2]
[378039475,1754675439110,-1200.74,0.00019262,2]
[378039476,1754675439120,-192.08,0.00019262,2]
[378039477,1754675439130,-308.78,0.00019262,2]
[378039478,1754675439139,-433.04,0.00019262,2]
[378039479,1754675439149,-197.24,0.00019262,2]
[378039480,1754675439158,-1059.86,0.00019262,2]
[378039481,1754675439168,-400.0,0.00019262,2]
[378039482,1754675439177,-455.45,0.00019262,2]
[378039483,1754675439186,-312.6090737,0.00019262,2]
[378039484,1754675439196,-400.0,0.00019262,2]
[378039485,1754675439205,-395.74,0.00019262,2]
[378039486,1754675439215,-184.27,0.00019262,2]
[378039487,1754675439225,-1430.07,0.00019262,2]
[378039488,1754675439234,-421.96,0.00019262,2]
[378039489,1754675439243,-229.39,0.00019262,2]
[378039490,1754675439253,-273.84,0.00019262,2]
[378039491,1754675439262,-1392.24,0.00019262,2]
[378039492,1754675439271,-2843.11,0.00019339,2]
[378039493,1754675439281,-400.0,0.00019484,2]
[378039494,1754675439290,-400.0,0.00019484,2]
[378039495,1754675439299,-400.0,0.00019484,2]
[378039496,1754675439308,-188.66164678,0.00019484,2]
[378039497,1754675439324,-211.33835322,0.00019484,2]
[378039498,1754675439333,-373.56,0.00019484,2]
[378039499,1754675439343,-400.0,0.00019484,2]
[378039500,1754675439352,-438.19903259,0.00019484,2]
[378039501,1754675439367,-333.22904684,0.00019484,2]
[378039503,1754675439742,-249.1643867,0.00018714,2]
[378039504,1754675439752,-73.37821329,0.00018714,2]
[378039505,1754675439772,-326.62178671,0.00018714,2]
[378039506,1754675439782,-400.0,0.00018937,2]
[378039507,1754675439792,-254.94820576,0.00018937,2]
[378039508,1754675439803,-750.13179424,0.00018937,2]
[378039509,1754675439813,-400.0,0.00018988,2]
[378039510,1754675439822,-216.06080536,0.0001921,2]
[378039511,1754675439831,-400.0,0.00019211,2]
[378039512,1754675439841,-1005.08,0.00019211,2]
[378039513,1754675439850,-132.42192057,0.00019484,2]
[378039514,1754675439859,-239.01,0.00019485,2]
[378039515,1754675439870,-808.39,0.00019485,2]
[378039516,1754675439879,-400.0,0.00019485,2]
[378039517,1754675439889,-265.84,0.00019485,2]
[378039518,1754675439899,-400.0,0.00019485,2]
[378039519,1754675439911,-752.1,0.00019485,2]
[378039520,1754675439921,-233.79289748,0.00019485,2]
[378039522,1754675439993,-222.72,0.00019262,2]
[378039523,1754675440003,-166.20710252,0.00019485,2]
[378039524,1754675440013,-1333.48,0.00019485,2]
[378039525,1754675440022,-473.12,0.00019485,2]
[378039526,1754675440031,-462.3,0.00019485,2]
[378039528,1754675440040,-371.07,0.00019485,2]
[378039530,1754675440050,-258.65656748,0.00019485,2]
[378039532,1754675440061,-141.34343252,0.00019485,2]
[378039534,1754675440071,-400.0,0.00019485,2]
[378039535,1754675440080,-400.0,0.00019485,2]
[378039536,1754675440090,-400.0,0.00019485,2]
[378039537,1754675440099,-282.82,0.00019485,2]
[378039538,1754675440108,-73.25939016,0.00019485,2]
[378039539,1754675440121,-776.42060984,0.00019485,2]
[378039540,1754675440130,-400.0,0.00019485,2]
[378039541,1754675440140,-400.0,0.00019485,2]
[378039542,1754675440149,-436.17919016,0.00019485,2]
[378039543,1754675440161,-2640.41080984,0.00019485,2]
[378039544,1754675440169,-3403.30980036,0.00019485,2]
[378039565,1754675442605,-400.0,0.00018937,2]
[378039566,1754675442615,-523.85,0.00019211,2]
[378039567,1754675442625,-115.17019964,0.00019485,2]
[378039568,1754675442635,-1191.04,0.00019485,2]
[378039569,1754675442645,-222.356723,0.00019485,2]
[378039570,1754675442655,-400.0,0.00019485,2]
[378039571,1754675442665,-611.08,0.00019485,2]
[378039572,1754675442675,-99.10307756,0.00019485,2]
[378039573,1754675442764,-424.74692244,0.00019485,2]
[378039574,1754675442774,-303.34,0.00019485,2]
[378039575,1754675442783,-1005.08,0.00019485,2]
[378039576,1754675442795,-400.0,0.00019486,2]
[378039577,1754675442806,-999.3,0.00019486,2]
[378039578,1754675442815,-405.36,0.00019486,2]
[378039579,1754675442825,-415.74,0.00019486,2]
[378039580,1754675442835,-403.35,0.00019486,2]
[378039581,1754675442845,-400.0,0.00019486,2]
[378039582,1754675442854,-400.0,0.00019486,2]
[378039583,1754675442863,-400.0,0.00019486,2]
[378039584,1754675442872,-400.0,0.00019486,2]
[378039585,1754675442882,-400.0,0.00019486,2]
[378039586,1754675442892,-272.12,0.00019486,2]
[378039587,1754675442901,-529.39,0.00019486,2]
[378039588,1754675442911,-305.39,0.00019486,2]
[378039589,1754675442921,-590.54,0.00019486,2]
[378039590,1754675442930,-400.0,0.00019486,2]
[378039592,1754675442940,-400.0,0.00019486,2]
[378039594,1754675442949,-400.0,0.00019486,2]
[378039595,1754675442958,-400.0,0.00019486,2]
[378039598,1754675442967,-400.0,0.00019486,2]
[378039600,1754675442977,-400.0,0.00019486,2]
[378039603,1754675442987,-1509.07,0.00019486,2]
[378039605,1754675442996,-418.65,0.00019486,2]
[378039607,1754675443005,-469.99,0.00019486,2]
[378039609,1754675443015,-400.0,0.00019486,2]
[378039611,1754675443025,-400.0,0.00019486,2]
[378039612,1754675443035,-2782.77,0.00019486,2]
[378039614,1754675443044,-385.23,0.00019486,2]
[378039616,1754675443053,-400.0,0.00019486,2]
[378039619,1754675443063,-709.42,0.00019486,2]
[378039621,1754675443073,-400.0,0.00019536,2]
[378039623,1754675443084,-256.5,0.00019536,2]
[378039625,1754675443093,-400.0,0.00019536,2]
[378039627,1754675443102,-400.0,0.00019536,2]
[378039629,1754675443112,-400.0,0.00019536,2]
[378039631,1754675443121,-492.02,0.00019536,2]
[378039632,1754675443131,-400.0,0.00019536,2]
[378039635,1754675443141,-452.57,0.00019536,2]
[378039636,1754675443151,-400.0,0.00019536,2]
[378039638,1754675443160,-400.0,0.00019536,2]
[378039640,1754675443169,-1200.74,0.00019536,2]
[378039642,1754675443179,-1059.86,0.00019536,2]
[378039644,1754675443188,-400.0,0.00019536,2]
[378039645,1754675443197,-160.23,0.00019536,2]
[378039646,1754675443207,-1430.07,0.00019536,2]
[378039647,1754675443217,-1392.24,0.00019536,2]
[378039649,1754675443227,-500.0,0.00019646,2]
[378039650,1754675443236,-1888.0,0.0001971,3]
[378039651,1754675443245,-1888.0,0.0001971,3]
[378039652,1754675443254,-1888.0,0.00019712,3]
[378039653,1754675443316,-156.7,0.00019714,2]
[378039654,1754675443325,-400.0,0.00019758,2]
[378039655,1754675443334,-276.09,0.00019758,2]
[378039656,1754675443343,-509.16,0.00019758,2]
[378039657,1754675443352,-400.0,0.00019758,2]
[378039658,1754675443361,-400.0,0.00019758,2]
[378039659,1754675443371,-903.85,0.00019758,2]
[378039660,1754675443383,-808.39,0.00019759,2]
[378039661,1754675443392,-211.25060677,0.00019759,2]
[378039662,1754675443414,-225.86,0.00019759,2]
[378039663,1754675443423,-752.1,0.00019759,2]
[378039664,1754675443437,-400.0,0.00019759,2]
[378039665,1754675443446,-1333.48,0.00019759,2]
[378039666,1754675443455,-462.3,0.00019759,2]
[378039667,1754675443464,-202.19,0.00019759,2]
[378039668,1754675443474,-198.38,0.00019759,2]
[378039669,1754675443484,-400.0,0.00019759,2]
[378039670,1754675443493,-269.15,0.00019759,2]
[378039671,1754675443505,-849.68,0.00019759,2]
[378039672,1754675443514,-428.44,0.00019759,2]
[378039673,1754675443524,-400.0,0.00019759,2]
[378039674,1754675443533,-3076.59,0.00019759,2]
[378039675,1754675443543,-3518.48,0.00019759,2]
[378039676,1754675443552,-1191.04,0.00019759,2]
[378039677,1754675443561,-400.0,0.00019759,2]
[378039678,1754675443570,-611.08,0.00019759,2]
[378039679,1754675443579,-523.85,0.00019759,2]
[378039680,1754675443589,-1005.08,0.00019759,2]
[378039681,1754675443598,-314.57906705,0.0001976,2]
[378039682,1754675443607,-999.3,0.0001976,2]
[378039683,1754675443616,-405.36,0.0001976,2]
[378039684,1754675443625,-415.74,0.0001976,2]
[378039685,1754675443635,-403.35,0.0001976,2]
[378039686,1754675443645,-400.0,0.0001976,2]
[378039687,1754675443654,-400.0,0.0001976,2]
[378039688,1754675443663,-400.0,0.0001976,2]
[378039689,1754675443672,-400.0,0.0001976,2]
[378039690,1754675443682,-400.0,0.0001976,2]
[378039691,1754675443691,-590.54,0.0001976,2]
[378039692,1754675443702,-400.0,0.0001976,2]
[378039693,1754675443711,-400.0,0.0001976,2]
[378039694,1754675443720,-400.0,0.0001976,2]
[378039695,1754675443730,-152.84,0.0001976,2]
[378039696,1754675443739,-400.0,0.0001976,2]
[378039697,1754675443749,-400.0,0.0001976,2]
[378039698,1754675443759,-1509.07,0.0001976,2]
[378039699,1754675443780,-400.0,0.0001976,2]
[378039700,1754675443793,-400.0,0.0001976,2]
[378039701,1754675443802,-507.39546532,0.0001976,2]
[378039702,1754675443812,-2782.77,0.0001976,2]
[378039703,1754675443821,-400.0,0.0001976,2]
[378039704,1754675443832,-709.42,0.0001976,2]
[378039705,1754675443841,-400.0,0.0001981,2]
[378039706,1754675443850,-400.0,0.0001981,2]
[378039707,1754675443860,-400.0,0.0001981,2]
[378039708,1754675443869,-400.0,0.0001981,2]
[378039709,1754675443878,-492.02,0.0001981,2]
[378039710,1754675443887,-400.0,0.0001981,2]
[378039711,1754675443896,-452.57,0.0001981,2]
[378039712,1754675443906,-174.3,0.0001981,2]
[378039713,1754675443915,-400.0,0.0001981,2]
[378039714,1754675443925,-1200.74,0.0001981,2]
[378039715,1754675443934,-1059.86,0.0001981,2]
[378039716,1754675443943,-400.0,0.0001981,2]
[378039717,1754675443953,-1430.07,0.0001981,2]
[378039718,1754675443961,-1392.24,0.0001981,2]
[378039719,1754675443971,-1000.0,0.0002,2]
[378039720,1754675443980,-2500.0,0.00020006,2]
[378039721,1754675443989,-500.0,0.00020006,2]
[378039722,1754675443998,-400.0,0.00020032,2]
[378039723,1754675444007,-400.0,0.00020032,2]
[378039724,1754675444016,-400.0,0.00020032,2]
[378039725,1754675444026,-903.85,0.00020032,2]
[378039726,1754675444035,-808.39,0.00020033,2]
[378039727,1754675444044,-752.1,0.00020033,2]
[378039728,1754675444053,-400.0,0.00020033,2]
[378039729,1754675444062,-1333.48,0.00020033,2]
[378039730,1754675444072,-462.3,0.00020033,2]
[378039731,1754675444081,-400.0,0.00020033,2]
[378039732,1754675444091,-849.68,0.00020033,2]
[378039733,1754675444100,-400.0,0.00020033,2]
[378039734,1754675444109,-3076.59,0.00020033,2]
[378039735,1754675444119,-3518.48,0.00020033,2]
[378039736,1754675444128,-1191.04,0.00020033,2]
[378039737,1754675444137,-400.0,0.00020033,2]
[378039738,1754675444147,-611.08,0.00020033,2]
[378039739,1754675444157,-523.85,0.00020033,2]
[378039740,1754675444167,-250.0,0.00020033,2]
[378039741,1754675444176,-500.0,0.00020033,2]
[378039742,1754675444185,-999.3,0.00020034,2]
[378039743,1754675444194,-405.36,0.00020034,2]
[378039744,1754675444203,-415.74,0.00020034,2]
[378039745,1754675444212,-403.35,0.00020034,2]
[378039746,1754675444221,-400.0,0.00020034,2]
[378039747,1754675444230,-400.0,0.00020034,2]
[378039748,1754675444239,-400.0,0.00020034,2]
[378039749,1754675444248,-400.0,0.00020034,2]
[378039750,1754675444257,-400.0,0.00020034,2]
[378039751,1754675444266,-590.54,0.00020034,2]
[378039752,1754675444274,-400.0,0.00020034,2]
[378039753,1754675444283,-546.36962862,0.00020034,2]
[378039754,1754675444293,-400.0,0.00020034,2]
[378039755,1754675444302,-263.93,0.00020034,2]
[378039756,1754675444311,-1509.07,0.00020034,2]
[378039757,1754675444321,-400.0,0.00020034,2]
[378039758,1754675444330,-400.0,0.00020034,2]
[378039759,1754675444339,-2782.77,0.00020034,2]
[378039760,1754675444349,-400.0,0.00020034,2]
[378039761,1754675444357,-709.42,0.00020034,2]
[378039762,1754675444367,-2500.0,0.00020061,2]
[378039763,1754675444377,-500.0,0.00020061,2]
[378039764,1754675444386,-150.0,0.0002008,2]
[378039765,1754675444395,-400.0,0.00020084,2]
[378039766,1754675444404,-400.0,0.00020084,2]
[378039767,1754675444413,-400.0,0.00020084,2]
[378039768,1754675444429,-400.0,0.00020084,2]
[378039769,1754675444443,-492.02,0.00020084,2]
[378039770,1754675444453,-400.0,0.00020084,2]
[378039771,1754675444462,-452.57,0.00020084,2]
[378039772,1754675444472,-400.0,0.00020084,2]
[378039773,1754675444482,-1200.74,0.00020084,2]
[378039774,1754675444491,-1059.86,0.00020084,2]
[378039775,1754675444501,-400.0,0.00020084,2]
[378039776,1754675444511,-1430.07,0.00020084,2]
[378039777,1754675444520,-1392.24,0.00020084,2]
[378039778,1754675444530,-158.52,0.00020086,2]
[378039779,1754675444540,-153.3,0.00020187,2]
[378039780,1754675444549,-198.85726275,0.00020194,2]
[378039781,1754675444559,-400.0,0.00020306,2]
[378039782,1754675444568,-400.0,0.00020306,2]
[378039783,1754675444578,-400.0,0.00020306,2]
[378039784,1754675444587,-903.85,0.00020306,2]
[378039785,1754675444596,-808.39,0.00020307,2]
[378039786,1754675444606,-752.1,0.00020307,2]
[378039787,1754675444615,-400.0,0.00020307,2]
[378039788,1754675444625,-1333.48,0.00020307,2]
[378039789,1754675444635,-462.3,0.00020307,2]
[378039790,1754675444646,-400.0,0.00020307,2]
[378039791,1754675444656,-849.68,0.00020307,2]
[378039792,1754675444665,-3076.59,0.00020307,2]
[378039793,1754675444674,-400.0,0.00020307,2]
[378039794,1754675444684,-3518.48,0.00020307,2]
[378039795,1754675444693,-1191.04,0.00020307,2]
[378039796,1754675444703,-400.0,0.00020307,2]
[378039797,1754675444712,-611.08,0.00020307,2]
[378039798,1754675444721,-523.85,0.00020307,2]
[378039799,1754675444731,-999.3,0.00020308,2]
[378039800,1754675444740,-405.36,0.00020308,2]
[378039801,1754675444750,-415.74,0.00020308,2]
[378039802,1754675444759,-403.35,0.00020308,2]
[378039803,1754675444769,-400.0,0.00020308,2]
[378039804,1754675444778,-400.0,0.00020308,2]
[378039805,1754675444788,-400.0,0.00020308,2]
[378039806,1754675444797,-400.0,0.00020308,2]
[378039807,1754675444807,-400.0,0.00020308,2]
[378039808,1754675444816,-590.54,0.00020308,2]
[378039809,1754675444826,-400.0,0.00020308,2]
[378039810,1754675444835,-400.0,0.00020308,2]
[378039811,1754675444844,-1509.07,0.00020308,2]
[378039812,1754675444854,-400.0,0.00020308,2]
[378039813,1754675444863,-2782.77,0.00020308,2]
[378039814,1754675444873,-400.0,0.00020308,2]
[378039815,1754675444883,-709.42,0.00020308,2]
[378039816,1754675444893,-400.0,0.00020358,2]
[378039817,1754675444903,-400.0,0.00020358,2]
[378039818,1754675444912,-400.0,0.00020358,2]
[378039819,1754675444921,-400.0,0.00020358,2]
[378039820,1754675444930,-492.02,0.00020358,2]
[378039821,1754675444940,-400.0,0.00020358,2]
[378039822,1754675444949,-452.57,0.00020358,2]
[378039823,1754675444959,-400.0,0.00020358,2]
[378039824,1754675444968,-1200.74,0.00020358,2]
[378039825,1754675444978,-1059.86,0.00020358,2]
[378039826,1754675444987,-400.0,0.00020358,2]
[378039827,1754675444996,-1430.07,0.00020358,2]
[378039828,1754675445006,-1392.24,0.00020358,2]
[378039829,1754675445015,-400.0,0.0002058,2]
[378039830,1754675445024,-400.0,0.0002058,2]
[378039831,1754675445034,-321.83,0.0002058,2]
[378039832,1754675445044,-903.85,0.0002058,2]
[378039833,1754675445053,-808.39,0.00020581,2]
[378039834,1754675445063,-752.1,0.00020581,2]
[378039835,1754675445073,-400.0,0.00020581,2]
[378039836,1754675445082,-1333.48,0.00020581,2]
[378039837,1754675445092,-462.3,0.00020581,2]
[378039838,1754675445101,-298.18482662,0.00020581,2]
[378039839,1754675445110,-849.68,0.00020581,2]
[378039840,1754675445119,-3076.59,0.00020581,2]
[378039841,1754675445129,-400.0,0.00020581,2]
[378039842,1754675445139,-3518.48,0.00020581,2]
[378039843,1754675445150,-1191.04,0.00020581,2]
[378039844,1754675445162,-400.0,0.00020581,2]
[378039845,1754675445171,-611.08,0.00020581,2]
[378039846,1754675445181,-523.85,0.00020581,2]
[378039847,1754675445190,-999.3,0.00020582,2]
[378039848,1754675445199,-405.36,0.00020582,2]
[378039849,1754675445208,-415.74,0.00020582,2]
[378039850,1754675445218,-403.35,0.00020582,2]
[378039851,1754675445227,-400.0,0.00020582,2]
[378039852,1754675445236,-400.0,0.00020582,2]
[378039853,1754675445246,-400.0,0.00020582,2]
[378039854,1754675445256,-400.0,0.00020582,2]
[378039855,1754675445265,-400.0,0.00020582,2]
[378039856,1754675445275,-590.54,0.00020582,2]
[378039857,1754675445284,-400.0,0.00020582,2]
[378039858,1754675445293,-481.98136695,0.00020582,2]
[378039859,1754675445301,-1509.07,0.00020582,2]
[378039860,1754675445309,-493.75952764,0.00020582,2]
[378039861,1754675445317,-2782.77,0.00020582,2]
[378039862,1754675445325,-400.0,0.00020582,2]
[378039863,1754675445334,-709.42,0.00020582,2]
[378039864,1754675445344,-400.0,0.00020632,2]
[378039865,1754675445352,-400.0,0.00020632,2]
[378039866,1754675445361,-400.0,0.00020632,2]
[378039867,1754675445368,-400.0,0.00020632,2]
[378039868,1754675445377,-492.02,0.00020632,2]
[378039869,1754675445386,-400.0,0.00020632,2]
[378039870,1754675445394,-452.57,0.00020632,2]
[378039871,1754675445404,-400.0,0.00020632,2]
[378039872,1754675445416,-1200.74,0.00020632,2]
[378039873,1754675445425,-1059.86,0.00020632,2]
[378039874,1754675445438,-400.0,0.00020632,2]
[378039875,1754675445448,-1430.07,0.00020632,2]
[378039876,1754675445458,-1392.24,0.00020632,2]
[378039878,1754675445467,-151.0,0.00020743,2]
[378039879,1754675445477,-151.0,0.00020743,2]
[378039880,1754675445487,-4111.18893822,0.00020745,2]
[378039881,1754675445498,-400.0,0.00020854,2]
[378039883,1754675445518,-400.0,0.00020854,2]
[378039885,1754675445532,-903.85,0.00020854,2]
[378039886,1754675445541,-808.39,0.00020855,2]
[378039887,1754675445550,-752.1,0.00020855,2]
[378039888,1754675445560,-400.0,0.00020855,2]
[378039889,1754675445569,-1333.48,0.00020855,2]
[378039890,1754675445579,-462.3,0.00020855,2]
[378039891,1754675445588,-849.68,0.00020855,2]
[378039892,1754675445599,-3076.59,0.00020855,2]
[378039893,1754675445608,-469.84456171,0.00020855,2]
[378039894,1754675445618,-3518.48,0.00020855,2]
[378039895,1754675445627,-1191.04,0.00020855,2]
[378039896,1754675445636,-400.0,0.00020855,2]
[378039897,1754675445645,-611.08,0.00020855,2]
[378039898,1754675445654,-523.85,0.00020855,2]
[378039899,1754675445664,-999.3,0.00020856,2]
[378039900,1754675445678,-405.36,0.00020856,2]
[378039901,1754675445697,-415.74,0.00020856,2]
[378039902,1754675445707,-403.35,0.00020856,2]
[378039903,1754675445716,-400.0,0.00020856,2]
[378039904,1754675445725,-400.0,0.00020856,2]
[378039905,1754675445735,-400.0,0.00020856,2]
[378039906,1754675445744,-400.0,0.00020856,2]
[378039907,1754675445753,-400.0,0.00020856,2]
[378039908,1754675445763,-590.54,0.00020856,2]
[378039909,1754675445773,-400.0,0.00020856,2]
[378039910,1754675445782,-400.0,0.00020856,2]
[378039911,1754675445792,-1509.07,0.00020856,2]
[378039912,1754675445802,-2782.77,0.00020856,2]
[378039913,1754675445812,-400.0,0.00020856,2]
[378039914,1754675445821,-709.42,0.00020856,2]
[378039915,1754675445831,-500.0,0.00020882,2]
[378039916,1754675445840,-1108.81377201,0.00020882,2]
[378039917,1754675445849,-400.0,0.00020906,2]
[378039918,1754675445858,-400.0,0.00020906,2]
[378039919,1754675445868,-400.0,0.00020906,2]
[378039920,1754675445878,-400.0,0.00020906,2]
[378039921,1754675445888,-492.02,0.00020906,2]
[378039922,1754675445897,-400.0,0.00020906,2]
[378039923,1754675445907,-452.57,0.00020906,2]
[378039924,1754675445917,-400.0,0.00020906,2]
[378039925,1754675445926,-1200.74,0.00020906,2]
[378039926,1754675445935,-1059.86,0.00020906,2]
[378039927,1754675445945,-400.0,0.00020906,2]
[378039928,1754675445955,-1430.07,0.00020906,2]
[378039929,1754675445965,-1392.24,0.00020906,2]
[378039930,1754675445974,-3486.474,0.00021034,2]
[378039931,1754675445983,-1171.0,0.00021034,2]
[378039932,1754675445993,-892.0,0.00021034,2]
[378039933,1754675446002,-6077.0,0.00021034,2]
[378039934,1754675446012,-194.85,0.00021034,2]
[378039935,1754675446021,-4142.0,0.00021034,2]
[378039936,1754675446030,-866.0,0.00021034,2]
[378039937,1754675446040,-5169.959,0.00021034,2]
[378039938,1754675446049,-150.0,0.00021059,2]
[378039939,1754675446059,-400.0,0.00021128,2]
[378039940,1754675446069,-400.0,0.00021128,2]
[378039941,1754675446079,-903.85,0.00021128,2]
[378039942,1754675446089,-808.39,0.00021129,2]
[378039943,1754675446099,-752.1,0.00021129,2]
[378039944,1754675446108,-400.0,0.00021129,2]
[378039945,1754675446117,-1333.48,0.00021129,2]
[378039946,1754675446127,-462.3,0.00021129,2]
[378039947,1754675446139,-849.68,0.00021129,2]
[378039948,1754675446150,-3076.59,0.00021129,2]
[378039949,1754675446162,-3518.48,0.00021129,2]